Cogmind - Beta 12 @@@ ROGUE MODE // 2023.03.17 @ 21:46:48 Player: Inkie Result: Destroyed by G-67 Veteran with Plasma Rifle Performance ------------- Evolutions (6) 3000 Regions Visited (17) 3400 Robots Destroyed (184) 920 Value Destroyed (8984) 8984 Prototype IDs (37) 740 Alien Tech Used (0) 0 Bonus (6311) 6311 TOTAL SCORE: 23355 Bonus ------- High Alert Combat Kills 1002 Follower Combat Kills 1024 Entered Garrisons 1200 Used RIF Installer 3000 Aligned with FarCom 300 Friendly Fire -215 Cogmind --------- Core Integrity 0/1150 Matter 179/300 Energy 400/550 System Corruption 23% Temperature Cool (25) Movement Core (650) Ox12 Location -4/Garrison Parts ------- > --- POWER (1) -------- Micro Fission Core > --- PROPULSION (6) --- (None) > --- UTILITY (10) ----- Advanced Heat Sink Advanced Heat Sink Medium Storage Unit Improved Energy Well Hacking Suite Relay Coupler [NC] (31) Relay Coupler [Swarmer] (49) Relay Coupler [Sentry] (18) Relay Coupler [Sentry] (25) > --- WEAPON (2) ------- Latent Energy Streamer Railgun > --- INVENTORY (10) --- Relay Coupler [Proto] (9) Relay Coupler [Proto] (9) Relay Coupler [Proto] (9) Relay Coupler [Proto] (9) Relay Coupler [Proto] (9) Relay Coupler [Proto] (9) Long-range Missile Launcher Improved Remote Datajack Peak State ------------ > --- POWER ------------ Antimatter Reactor > --- PROPULSION ------- Gravmag Array Improved Linear Gravjet Improved Linear Gravjet Improved Linear Gravjet > --- UTILITY ---------- Lightpack 2.0 Gravity Neutralizer Improved Propulsion Shielding Hacking Suite Hacking Suite System Shield System Shield Relay Coupler [Sentry] > --- WEAPON ----------- Advanced Plasma Cannon > --- INVENTORY -------- Micro Fission Core Antimatter Reactor Reinforced Antimatter Reactor Nuclear Pulse Array Launcher Guidance Computer Precision Matter Filter Advanced Transmission Jammer Advanced Phase Shifter Improved Focal Shield Advanced Hardlight Generator Authchip [R/NC] Authchip [R/Combat] Bomb Drone Bay Heavy Proton Cannon Latent Energy Streamer Railgun Antimatter Cannon Long-range Missile Launcher Remote Datajack Field Lobotomy Kit [Rating: 113] Favorites ----------- Power Reinforced Antimatter Reactor Engine Deuterium Engine Power Core Light Nuclear Core Reactor Reinforced Antimatter Reactor Propulsion Advanced Treads Treads Advanced Treads Leg Aluminum Leg Wheel Wheel Hover Unit Improved Linear Gravjet Flight Unit Impulse Thruster Utility Huge Storage Unit Device Improved Heat Sink Storage Huge Storage Unit Processor Machine Analyzer Hackware Hacking Suite Protection Light Armor Plating Weapon Improved Assault Rifle Energy Gun Shock Rifle Energy Cannon Matter Neutralizer Ballistic Gun Improved Assault Rifle Ballistic Cannon Assault Cannon Launcher Grenade Launcher Special Weapon Remote Datajack Slashing Weapon Ripper Piercing Weapon Force Lance Special Melee Weapon Improved Datajack Build | -11 -10 -10 -10 -9 -8 -8 -8 -8 -7 -7 -6 -5 -5 -4 -4 -4 -4 ------- Run | Jun Mat Min Exi Min Mat Gar Mat Gar Fac Gar Fac Fac Gar Fac Gar Fac Gar Slots Evolved 12 | . . . . . 4 . . . 2 . 2 2 . 2 . . . Power . | . . . . . . . . . . . . . . . . . . Propulsion 4 | . . . . . . . . . 2 . 2 . . . . . . Utility 8 | . . . . . 4 . . . . . . 2 . 2 . . . Weapon . | . . . . . . . . . . . . . . . . . . Parts Attached 272 | 6 5 2 1 1 29 14 23 11 16 39 23 16 4 18 11 32 21 Power 22 | 1 . . . . 1 1 3 . 1 2 . 4 1 3 2 2 1 Engine 5 | 1 . . . . 1 . 1 . 1 . . . . . . 1 . Core 11 | . . . . . . 1 2 . . 1 . 4 . 1 1 . 1 Reactor 6 | . . . . . . . . . . 1 . . 1 2 1 1 . Propulsion 49 | 2 . . . . 5 1 3 1 4 7 5 2 . 6 3 10 . Treads 24 | 2 . . . . 5 1 2 1 3 2 4 1 . . . 3 . Leg 6 | . . . . . . . . . . 5 . 1 . . . . . Wheel 3 | . . . . . . . . . . . . . . . . 3 . Hover 7 | . . . . . . . . . . . 1 . . 6 . . . Flight 9 | . . . . . . . 1 . 1 . . . . . 3 4 . Utility 97 | 1 1 . 1 1 12 6 9 4 5 15 13 6 . 4 3 9 7 Device 35 | . . . . . 3 . 4 . . 10 4 4 . 1 2 4 3 Storage 12 | 1 1 . 1 . 2 . 1 . . . 1 1 . 1 . 3 . Processor 4 | . . . . . . . . . 1 . 2 . . . 1 . . Hackware 16 | . . . . . . . . 4 2 2 2 1 . 1 . 1 3 Protection 30 | . . . . 1 7 6 4 . 2 3 4 . . 1 . 1 1 Artifact . | . . . . . . . . . . . . . . . . . . Weapon 104 | 2 4 2 . . 11 6 8 6 6 15 5 4 3 5 3 11 13 Energy Gun 12 | 1 . . . . 7 2 . . . . . . . . . . 2 Energy Cannon 14 | . . . . . . . . . . 3 2 1 2 2 . 3 1 Ballistic Gun 23 | 1 2 1 . . 2 3 3 1 . . . . . 1 1 2 6 Ballistic Cannon 10 | . . . . . . . 2 . 3 1 . . . 1 . 3 . Launcher 20 | . 2 1 . . . . 2 1 1 4 1 1 1 1 2 2 1 Special Weapon 10 | . . . . . . . . . . 3 1 2 . . . 1 3 Impact Weapon . | . . . . . . . . . . . . . . . . . . Slashing Weapon 7 | . . . . . 2 1 1 2 1 . . . . . . . . Piercing Weapon 5 | . . . . . . . . . . 4 1 . . . . . . Special Melee Weapon 3 | . . . . . . . . 2 1 . . . . . . . . Unidentified Prototypes 12 | . 1 . . . . . 2 . 1 . 3 3 . 1 . 1 . Corrupted Parts 1 | . . . . . . . . . . . . . 1 . . . . System Corruption 6 | . . . . . . . . . . . . . 6 . . . . Parts Lost 67 | . . 2 . . 1 5 4 3 4 7 . 2 1 6 14 12 6 Power 7 | . . 1 . . . 1 . . . . . . . . 3 1 1 Propulsion 24 | . . . . . . 1 1 1 . 4 . . 1 4 5 4 3 Utility 25 | . . . . . . 3 2 2 3 2 . 1 . 2 4 5 1 Weapon 11 | . . 1 . . 1 . 1 . 1 1 . 1 . . 2 2 1 Highest Loss Streak 14 | . . 1 . . 1 2 1 1 2 2 . 2 1 3 14 6 5 To Critical Strikes 2 | . . . . . 1 . . . . . . . . . 1 . . Average Slot Usage (%) 82 | . 85 65 57 64 85 91 97 90 82 94 64 77 86 64 53 60 64 Engine 2 | . 14 5 . . 8 1 1 9 7 . . . . . . . 2 Core 1 | . . . . . . 3 7 . . . . 2 4 . . . . Reactor 1 | . . . . . . . . . . 6 6 2 . 3 2 2 . Treads 16 | . 28 28 28 28 17 17 17 18 23 11 13 21 21 1 . . 14 Leg 2 | . . . . . . . . . . 14 . . . . . . . Device 9 | . . . . . 7 18 22 9 1 13 1 7 11 4 7 5 5 Storage 9 | . 14 14 14 14 9 9 9 9 7 7 6 10 11 6 5 8 10 Hackware 9 | . . . . . . . . 8 16 17 19 17 23 25 23 18 16 Protection 10 | . . . . 7 25 23 20 18 5 5 5 1 . 4 . 1 3 Energy Gun 1 | . 14 3 . . 11 2 . . . . . . . . . . . Energy Cannon 1 | . . . . . . . . . . 3 1 2 4 3 2 1 . Ballistic Gun 4 | . 11 . . . 2 14 15 1 . . . . . . 1 2 8 Launcher 2 | . 2 13 14 14 1 . 1 3 . 2 . 1 . . . . . Slashing Weapon 1 | . . . . . . . . 5 6 . . . . . . . . Piercing Weapon 1 | . . . . . . . . . . 5 4 1 . . . . . Naked Turns . | . . . . . . . . . . . . . . . . . . Heaviest Build 222 | 14 34 30 83 88 222 107 114 113 118 135 141 142 116 116 34 127 39 Greatest Support 210 | 40 40 40 40 40 44 44 44 44 94 150 170 193 193 118 42 210 210 Greatest Overweight (x) 6 | . . . 2 2 5 2 4 2 2 4 1 1 . 1 1 6 . Average Overweight (x) 1 | . . . 1 2 2 2 2 2 1 2 . . . . . 2 . Largest Inventory Capacity 40 | 8 15 15 25 25 35 25 25 25 25 25 25 25 25 40 40 40 10 Average Capacity 24 | 6 13 15 21 25 25 25 25 25 25 25 25 25 25 38 40 25 10 Most Carried 26 | 1 12 15 24 25 25 25 25 25 25 25 25 25 25 25 22 26 10 Average Carried 22 | . 7 14 19 24 24 24 24 22 22 24 24 24 25 22 20 23 9 Final Capacity 40 | 8 15 15 25 25 25 25 25 25 25 25 25 25 25 40 40 10 10 Final Carried 25 | 1 12 15 24 25 25 25 24 21 24 24 25 25 25 23 21 10 8 Class Distribution -------------------- 48% | Mutant 29% | Hacker-Mutant 15% | Bothacker-Mutant 3% | Botlord-Mutant Dominant Class ---------------- Mutant | -10/Materials Mutant | -10/Mines Mutant | -10/Exiles Mutant | -9/Mines Mutant | -8/Materials Mutant | -8/Garrison Mutant | -8/Materials Bothacker-Mutant | -8/Garrison Hacker-Mutant | -7/Factory Hacker-Mutant | -7/Garrison Hacker-Mutant | -6/Factory Hacker-Mutant | -5/Factory Hacker-Mutant | -5/Garrison Hacker-Mutant | -4/Factory Bothacker-Mutant | -4/Garrison Bothacker-Mutant | -4/Factory Botlord-Mutant | -4/Garrison Resources | -11 -10 -10 -10 -9 -8 -8 -8 -8 -7 -7 -6 -5 -5 -4 -4 -4 -4 ----------- Run | Jun Mat Min Exi Min Mat Gar Mat Gar Fac Gar Fac Fac Gar Fac Gar Fac Gar Matter Collected 5841 | 186 115 51 138 40 245 400 847 101 369 999 260 283 225 100 7 931 544 Remotely . | . . . . . . . . . . . . . . . . . . Salvage Created 7117 | . 162 101 . 80 585 507 1101 192 317 1244 895 104 320 73 32 1010 394 Parts 395 | . 17 16 . 4 38 24 58 9 20 67 40 6 22 3 8 39 24 Haulers Intercepted 1 | . . . . . 1 . . . . . . . . . . . . Recyclers Shooed 6 | . . . . . . . 2 . 1 . . . . . . 3 . Parts Field Recycled . | . . . . . . . . . . . . . . . . . . Retrieved Matter . | . . . . . . . . . . . . . . . . . . Parts Self-Destructed . | . . . . . . . . . . . . . . . . . . Prevented . | . . . . . . . . . . . . . . . . . . Kills | -11 -10 -10 -10 -9 -8 -8 -8 -8 -7 -7 -6 -5 -5 -4 -4 -4 -4 ------- Run | Jun Mat Min Exi Min Mat Gar Mat Gar Fac Gar Fac Fac Gar Fac Gar Fac Gar Combat Hostiles Destroyed 157 | . 7 13 . 4 10 11 19 8 7 27 13 4 5 2 2 15 10 Melee 19 | . . . . . . . . . 2 5 11 1 . . . . . Guns 49 | . 4 1 . . 8 11 18 . . . . . . . . 1 6 Cannons 26 | . . . . . . . 1 1 3 12 2 . 2 . . 5 . AOE 55 | . 3 12 . 4 2 . . 7 2 7 . 3 2 2 2 5 4 Classes Destroyed 17 | . 4 . . 1 5 1 2 . 1 . . . 1 1 . 1 . Worker 7 | . 1 . . . 2 . 1 . . . 1 . . . . 2 . Builder 6 | . 1 . . . 1 . . . 2 . . . . . . 2 . Tunneler 1 | . . . . . . . . . . . . . . 1 . . . Hauler 1 | . . . . . 1 . . . . . . . . . . . . Recycler 6 | . . . . 1 . . 2 . 1 . 1 . . . . 1 . Mechanic 1 | . . . . . . . . . . . . . . . . 1 . Operator 2 | . . . . . 1 . . . . . 1 . . . . . . Watcher 2 | . . . . . . . 1 . . . . . 1 . . . . Swarmer 37 | . 5 11 . 4 . . . 3 . 5 . 3 2 . . . 4 Cutter 4 | . . . . . . 2 . . . . . . . . 2 . . Grunt 65 | . 2 2 . . 2 6 11 2 3 12 8 . . 2 . 12 3 Brawler 1 | . . . . . 1 . . . . . . . . . . . . Duelist 3 | . . . . . . . 1 . . 1 1 . . . . . . Sentry 18 | . . . . . 6 3 5 . 1 2 . 1 . . . . . Specialist 1 | . . . . . . . . . . . . . 1 . . . . Hunter 10 | . . . . . 1 . 2 3 . 1 1 . 2 . . . . Programmer 19 | . . . . . . . . . 3 6 3 . 1 . . 3 3 Best Kill Streak 8 | . 5 5 . 4 4 4 3 3 3 3 3 3 4 3 2 8 4 Combat Bots Only 5 | . 3 5 . 4 3 4 2 3 3 3 3 3 4 2 2 4 4 Max Kills in Single Turn 5 | . 5 4 . 3 3 2 2 3 1 2 1 3 1 1 2 4 4 Gunslinging 1 | . . . . . . 1 . . . . . . . . . . . Exploded 4 | . 3 4 . 3 2 . . 3 1 2 . 3 1 1 2 2 4 Melee 1 | . . . . . . . . . 1 1 1 1 . . . . . Uniques/NPCs Destroyed . | . . . . . . . . . . . . . . . . . . Combat | -11 -10 -10 -10 -9 -8 -8 -8 -8 -7 -7 -6 -5 -5 -4 -4 -4 -4 -------- Run | Jun Mat Min Exi Min Mat Gar Mat Gar Fac Gar Fac Fac Gar Fac Gar Fac Gar Damage Taken 16230 | . 136 276 . 49 533 835 1287 422 1323 1651 1258 528 579 798 1812 2417 2326 Core 1968 | . 19 56 . 25 15 30 87 62 78 211 108 23 97 171 460 384 142 Absorbed by Shields 580 | . . . . . . . 198 . . 278 104 . . . . . . Reduced by Siege Mode 580 | . . . . . . . . . . . . . . . . . 580 Redirected to Shielding 215 | . . . . . . . . . . . . . . 108 . 107 . Regen/Repaired (Parts) 901 | . . . . . 612 . . . 211 . . . . . . 78 . Core Remaining (%) 76 | 100 . . . 60 . . . 64 . 58 87 . 88 . . . . Volleys Fired 540 | . 10 13 . 3 30 48 93 24 45 94 29 5 22 14 9 51 50 Largest 2 | . 2 2 . 1 2 2 2 2 1 1 1 1 1 1 1 2 2 Hottest 105 | . 73 73 . 30 100 50 67 67 44 105 105 81 81 98 98 98 80 Shots Fired 760 | . 17 16 . 3 57 87 183 30 46 98 29 5 22 14 9 55 89 Gun 433 | . 14 6 . . 54 87 169 6 . . . . . . 4 13 80 Cannon 230 | . . . . . . . 13 9 39 77 21 2 17 9 4 34 5 Launcher 74 | . 3 10 . 3 3 . 1 15 7 13 . 1 5 5 1 6 1 Special 23 | . . . . . . . . . . 8 8 2 . . . 2 3 Kinetic 471 | . 7 3 . . 19 80 182 15 39 10 . . . . 4 32 80 Thermal 128 | . 7 3 . . . . . . . 67 21 . . 9 4 13 4 Explosive 74 | . 3 10 . 3 3 . 1 15 7 13 . 1 5 5 1 6 1 Electromagnetic 64 | . . . . . 35 7 . . . . . 2 17 . . 2 1 Robot Hit Streak 31 | . 4 6 . . 13 31 22 6 4 8 5 3 4 2 2 16 12 Robot Miss Streak 5 | . 1 2 . 1 4 4 4 2 3 3 5 2 3 1 . 4 2 Penetration Max 1 | . . . . . . . . . . . . . . . . . 1 Secondary Targets 4 | . . . . . . 2 2 . . . . . . . . . . Max Gunslinging Chain 1 | . . . . . . 1 1 . . . . . . . . . . Shots Hit Robots 539 | . 9 9 . . 38 58 129 29 36 83 42 5 9 3 1 36 52 Core Hits 300 | . 10 14 . 4 24 25 51 14 16 38 20 7 11 9 3 33 21 Critical Kills 4 | . . . . . 1 . . . . 3 . . . . . . . Critical Parts Destroyed . | . . . . . . . . . . . . . . . . . . Critical Strikes 18 | . 1 . . . 3 . . 1 2 5 4 1 . . . 1 . Burn 1 | . 1 . . . . . . . . . . . . . . . . Meltdown 3 | . . . . . . . . . . 3 . . . . . . . Destroy 1 | . . . . . 1 . . . . . . . . . . . . Blast 3 | . . . . . . . . 1 1 . . . . . . 1 . Corrupt 2 | . . . . . 2 . . . . . . . . . . . . Sever 1 | . . . . . . . . . 1 . . . . . . . . Impale 7 | . . . . . . . . . . 2 4 1 . . . . . Melee Attacks 132 | . . . . . 2 2 2 22 22 42 37 3 . . . . . Impact . | . . . . . . . . . . . . . . . . . . Slashing 46 | . . . . . 2 2 2 12 21 7 . . . . . . . Piercing 74 | . . . . . . . . . . 34 37 3 . . . . . Sneak Attacks 12 | . . . . . . . . 6 3 1 2 . . . . . . Combat Hostiles 1 | . . . . . . . . . . 1 . . . . . . . Follow-up Attacks . | . . . . . . . . . . . . . . . . . . Damage Inflicted 20338 | . 371 804 . 206 1215 866 2049 1075 1437 3767 1602 420 780 691 206 3054 1795 Guns 4945 | . 119 31 . . 573 862 1849 43 . . . . . . 22 250 1196 Cannons 4679 | . . . . . . . 180 126 675 1996 367 37 317 . . 861 120 Explosions 7588 | . 252 773 . 198 636 . . 714 405 581 . 269 463 691 184 1943 479 Melee 3080 | . . . . . . . . 192 357 1182 1235 114 . . . . . Ramming 46 | . . . . 8 6 4 20 . . 8 . . . . . . . Kinetic 6505 | . 83 31 . . 218 862 2029 169 675 205 . . . . 22 935 1276 Thermal 2980 | . 36 . . . 560 . . . . 1791 367 . . . . 186 40 Explosive 5721 | . 252 773 . 198 76 . . 714 405 581 . 269 463 691 184 784 331 Electromagnetic 2006 | . . . . . 355 . . . . . . 37 317 . . 1149 148 Impact . | . . . . . . . . . . . . . . . . . . Slashing 579 | . . . . . . . . 192 357 30 . . . . . . . Piercing 2501 | . . . . . . . . . . 1152 1235 114 . . . . . Highest Corruption 23 | . . . . . . . . . 5 10 4 2 8 . 1 17 23 Average Corruption 7 | . . . . . . . . . 2 7 3 2 2 . 1 7 20 Corruption Purged . | . . . . . . . . . . . . . . . . . . Corruption Blocked . | . . . . . . . . . . . . . . . . . . Effects 221 | . . . . . . . . . 10 109 15 6 4 . . 25 52 Message Errors 50 | . . . . . . . . . 3 28 5 . . . . 3 11 Matter Fused 58 | . . . . . . . . . 1 25 5 3 . . . 10 14 Heat Flow Errors 23 | . . . . . . . . . 1 12 3 1 2 . . 2 2 Energy Discharges 27 | . . . . . . . . . 2 14 2 . 1 . . 4 4 Parts Rejected 4 | . . . . . . . . . . 1 . 1 . . . 1 1 Parts Fused 4 | . . . . . . . . . . . . . . . . . 4 Data Loss (minor) 22 | . . . . . . . . . 2 14 . 1 . . . 2 3 Data Loss (major) 10 | . . . . . . . . . . 8 . . . . . . 2 Misfires 9 | . . . . . . . . . 1 5 . . . . . . 3 Alerts 5 | . . . . . . . . . . 1 . . 1 . . . 3 Misdirections 2 | . . . . . . . . . . . . . . . . 2 . Weapon Failures 7 | . . . . . . . . . . 1 . . . . . 1 5 Overload Shots . | . . . . . . . . . . . . . . . . . . Overflow Damage 681 | . . 46 . . 13 . . 30 118 207 158 . 33 . 28 48 . Projectiles 277 | . . . . . . . . . 26 169 5 . 33 . . 44 . Explosions 121 | . . 46 . . 13 . . 30 . . . . . . 28 4 . Melee 283 | . . . . . . . . . 92 38 153 . . . . . . Knockbacks 24 | . . . . . . . 3 1 6 4 . . . . . 7 3 Impact . | . . . . . . . . . . . . . . . . . . Kinetic 23 | . . . . . . . 3 1 5 4 . . . . . 7 3 Secondary 1 | . . . . . . . . . 1 . . . . . . . . Self-Inflicted Damage 511 | . 33 75 . 43 43 . 12 27 21 118 . . 25 . 70 13 31 Shots 17 | . 1 3 . 2 1 . 1 1 1 3 . . 1 . 1 1 1 Rammed 10 | . . . . 1 1 1 4 . . 2 . 1 . . . . . Targets Rammed 13 | . . . . 2 3 1 4 . . 2 . 1 . . . . . Kicked . | . . . . . . . . . . . . . . . . . . Crushed 3 | . . . . 1 2 . . . . . . . . . . . . Highest Temperature 442 | . 60 36 . . 159 63 17 . 230 238 442 115 74 135 52 150 192 Average Temperature 84 | . 26 16 . . 67 24 10 . 49 97 142 40 34 44 23 50 86 Received Heat Transfer 3541 | . 12 42 . . 153 396 647 81 381 437 288 54 126 150 270 324 180 Effects 4 | . . . . . . . . . 1 . 3 . . . . . . Shutdowns 1 | . . . . . . . . . . . 1 . . . . . . Energy Bleed 1 | . . . . . . . . . . . 1 . . . . . . Interference 1 | . . . . . . . . . 1 . . . . . . . . Damage (minor) 1 | . . . . . . . . . . . 1 . . . . . . Siege Activations 7 | . . . . . . . . . . . . . . . . . 7 Total Turns 108 | . . . . . . . . . . . . . . . . . 108 Longest Duration 36 | . . . . . . . . . . . . . . . . . 36 Robots Corrupted 5 | . . . . . . . . . . . . . 1 . . 4 . Combat Hostiles 5 | . . . . . . . . . . . . . 1 . . 4 . Parts Fried 7 | . . . . . 2 . . . . . . . 1 . . 4 . Impact Corruptions . | . . . . . . . . . . . . . . . . . . Robots Melted 3 | . . . . . . . . . . 3 . . . . . . . Combat Hostiles 3 | . . . . . . . . . . 3 . . . . . . . Parts Melted 10 | . 1 . . . . . . . . 4 5 . . . . . . Heat Transferred 3210 | . 185 . . . 500 . . . . 1739 370 . . . . 324 92 Parts Sabotaged . | . . . . . . . . . . . . . . . . . . Parts Stolen . | . . . . . . . . . . . . . . . . . . Parts Stripped . | . . . . . . . . . . . . . . . . . . Power Chain Reactions 3 | . . . . . 3 . . . . . . . . . . . . Missiles Intercepted . | . . . . . . . . . . . . . . . . . . Latent Energy Used 488 | . . . . . . . . . . . . . . . . 389 99 LE Corruption 8 | . . . . . . . . . . . . . . . . 6 2 Alert | -11 -10 -10 -10 -9 -8 -8 -8 -8 -7 -7 -6 -5 -5 -4 -4 -4 -4 ------- Run | Jun Mat Min Exi Min Mat Gar Mat Gar Fac Gar Fac Fac Gar Fac Gar Fac Gar Peak Influence 2213 | . 240 464 . 157 162 460 294 566 349 2213 1228 515 810 546 250 505 809 Initial 1161 | . . 93 . . . . 224 17 296 38 1161 285 360 424 201 107 266 Average 362 | . 62 327 . 71 36 226 103 268 154 882 622 322 692 311 208 225 569 Maximum Alert Level 5 | . 1 2 . . . 2 1 2 1 5 4 2 3 2 1 2 3 Low Security (%) 44 | 100 93 7 . 100 100 36 70 34 70 20 . 8 . 13 7 61 . Level 1 24 | . 6 64 . . . 56 29 45 29 7 . 67 14 55 92 22 19 Level 2 17 | . . 28 . . . 7 . 19 . 18 83 24 12 30 . 15 65 Level 3 6 | . . . . . . . . . . 19 1 . 72 . . . 15 Level 4 3 | . . . . . . . . . . 11 14 . . . . . . Level 5 4 | . . . . . . . . . . 21 . . . . . . . High Security . | . . . . . . . . . . . . . . . . . . Max Security . | . . . . . . . . . . . . . . . . . . Squads Dispatched 18 | . . . . . . . 2 . 5 . 5 2 . 1 . 3 . Investigation 2 | . . . . . . . . . . . 1 . . 1 . . . Extermination 6 | . . . . . . . . . 3 . 1 1 . . . 1 . Reinforcement 8 | . . . . . . . 2 . 2 . 1 1 . . . 2 . Assault 2 | . . . . . . . . . . . 2 . . . . . . Garrison . | . . . . . . . . . . . . . . . . . . Intercept . | . . . . . . . . . . . . . . . . . . Searches Triggered . | . . . . . . . . . . . . . . . . . . Construction Impeded 3 | . . . . . . . 1 . 1 . . . . . . 1 . Haulers Reinforced 2 | . . . . . . . . . 1 . . . . . . 1 . Active Scanning Responses . | . . . . . . . . . . . . . . . . . . Cargo Convoy Interrupts . | . . . . . . . . . . . . . . . . . . Alert ID Control Effect 5 | . . . . . . . . 1 1 3 . . . . . . . Stealth | -11 -10 -10 -10 -9 -8 -8 -8 -8 -7 -7 -6 -5 -5 -4 -4 -4 -4 --------- Run | Jun Mat Min Exi Min Mat Gar Mat Gar Fac Gar Fac Fac Gar Fac Gar Fac Gar Distress Signals 15 | . 1 . . . 2 . 7 . . . . . 1 2 . 2 . Communications Jammed . | . . . . . . . . . . . . . . . . . . Distress Signals . | . . . . . . . . . . . . . . . . . . Times Spotted 298 | . 11 11 . 1 18 11 35 12 15 35 24 15 11 34 17 27 21 Peak Tracking Total 18 | . 4 6 . 1 4 5 5 4 4 3 4 4 7 18 9 6 8 Tactical Retreats 14 | . 2 . . . 1 . 1 . . . 1 1 1 4 2 1 . Traps | -11 -10 -10 -10 -9 -8 -8 -8 -8 -7 -7 -6 -5 -5 -4 -4 -4 -4 ------- Run | Jun Mat Min Exi Min Mat Gar Mat Gar Fac Gar Fac Fac Gar Fac Gar Fac Gar Traps Triggered 18 | . . . . . . 1 . 4 . 10 . . . 1 . . 2 Indirectly . | . . . . . . . . . . . . . . . . . . Trap Hack Attempts . | . . . . . . . . . . . . . . . . . . Triggered . | . . . . . . . . . . . . . . . . . . Disarmed . | . . . . . . . . . . . . . . . . . . Reprogrammed . | . . . . . . . . . . . . . . . . . . Reused . | . . . . . . . . . . . . . . . . . . Traps Extracted . | . . . . . . . . . . . . . . . . . . Installed . | . . . . . . . . . . . . . . . . . . Triggered . | . . . . . . . . . . . . . . . . . . Machines | -11 -10 -10 -10 -9 -8 -8 -8 -8 -7 -7 -6 -5 -5 -4 -4 -4 -4 ---------- Run | Jun Mat Min Exi Min Mat Gar Mat Gar Fac Gar Fac Fac Gar Fac Gar Fac Gar Machines Disabled 26 | . . 1 . 2 1 2 . 2 1 5 1 4 . . . 3 4 Max in Single Turn 2 | . . 1 . 2 1 1 . 1 1 1 1 . . . . 2 2 Garrison Access 4 | . . . . . . . . . . . 2 . . 1 . 1 . Garrison Relay 7 | . . . . . . 2 . 1 . 3 . . . . . . 1 Phase Generator 1 | . . . . . . . . . . . . . . . . . 1 Machines Repaired . | . . . . . . . . . . . . . . . . . . Machines Sabotaged . | . . . . . . . . . . . . . . . . . . Overloaded Fab Kills . | . . . . . . . . . . . . . . . . . . Hacking | -11 -10 -10 -10 -9 -8 -8 -8 -8 -7 -7 -6 -5 -5 -4 -4 -4 -4 --------- Run | Jun Mat Min Exi Min Mat Gar Mat Gar Fac Gar Fac Fac Gar Fac Gar Fac Gar Machines Accessed 52 | . . 1 2 . 10 1 8 2 8 1 6 1 . 7 1 3 1 Terminals 30 | . . . . . 6 1 5 2 6 1 3 . . 4 1 . 1 Fabricators 2 | . . . . . . . . . . . . . . 1 . 1 . Repair Stations 5 | . . . . . 2 . 1 . 1 . 1 . . . . . . Recycling Units 1 | . . . . . 1 . . . . . . . . . . . . Scanalyzers 1 | . . . . . . . 1 . . . . . . . . . . Garrison Access 10 | . . . . . 1 . 1 . 1 . 2 1 . 2 . 2 . Total Hacks 169 | . . 1 2 . 41 2 31 6 24 1 19 1 . 22 8 9 2 Successful 93 | . . 1 2 . 36 . 15 . 12 . 8 1 . 11 2 5 . Failed 76 | . . . . . 5 2 16 6 12 1 11 . . 11 6 4 2 Catastrophic 15 | . . . . . . 1 4 2 3 1 1 . . 2 1 . . Database Lockouts . | . . . . . . . . . . . . . . . . . . Manual 88 | . . . 1 . 13 . 20 . 16 1 14 . . 9 7 5 2 Terminals 103 | . . . . . 17 2 21 6 17 1 13 . . 16 8 . 2 Fabricators 9 | . . . . . . . . . . . . . . 4 . 5 . Repair Stations 31 | . . . . . 22 . 2 . 5 . 2 . . . . . . Recycling Units 1 | . . . . . 1 . . . . . . . . . . . . Scanalyzers 5 | . . . . . . . 5 . . . . . . . . . . Garrison Access 17 | . . . . . 1 . 3 . 2 . 4 1 . 2 . 4 . Terminal Hacks 31 | . . 1 2 . 9 . 6 . 2 . 5 . . 4 2 . . Record 1 | . . . 1 . . . . . . . . . . . . . . Part Schematic 1 | . . . . . . . . . 1 . . . . . . . . Robot Schematic 1 | . . . . . 1 . . . . . . . . . . . . Prototype ID Bank 1 | . . . . . 1 . . . . . . . . . . . . Open Door 1 | . . 1 . . . . . . . . . . . . . . . Level Access Points 1 | . . . . . . . . . . . 1 . . . . . . Branch Access Points 2 | . . . . . 1 . . . . . 1 . . . . . . Emergency Access Points 1 | . . . . . . . . . . . . . . . 1 . . Machine Index 2 | . . . . . . . . . 1 . . . . 1 . . . Terminal Index 1 | . . . . . . . . . . . . . . 1 . . . Garrison Index 1 | . . . . . 1 . . . . . . . . . . . . Alert Level 1 | . . . . . 1 . . . . . . . . . . . . Unreport Threat 9 | . . . . . 2 . 2 . . . 3 . . 2 . . . Locate Traps 1 | . . . . . . . 1 . . . . . . . . . . Hauler Manifests 2 | . . . . . 1 . 1 . . . . . . . . . . Zone Layout 3 | . . . . . 1 . 2 . . . . . . . . . . Garrison Registry 1 | . . . . . . . . . . . . . . . 1 . . EX-Prototype ID Bank 1 | . . . 1 . . . . . . . . . . . . . . Fabricator Hacks 4 | . . . . . . . . . . . . . . 2 . 2 . Load Schematic 2 | . . . . . . . . . . . . . . 1 . 1 . Build 2 | . . . . . . . . . . . . . . 1 . 1 . Repair Station Hacks 27 | . . . . . 22 . 1 . 4 . . . . . . . . Scan Component 14 | . . . . . 11 . 1 . 2 . . . . . . . . Repair 13 | . . . . . 11 . . . 2 . . . . . . . . Recycling Unit Hacks . | . . . . . . . . . . . . . . . . . . Scanalyzer 4 | . . . . . . . 4 . . . . . . . . . . Insert Component 1 | . . . . . . . 1 . . . . . . . . . . Analyze 3 | . . . . . . . 3 . . . . . . . . . . Garrison Access Hacks 10 | . . . . . 1 . 1 . 1 . 2 1 . 2 . 2 . Unlock Access 6 | . . . . . 1 . 1 . 1 . . 1 . 1 . 1 . Seal Access 4 | . . . . . . . . . . . 2 . . 1 . 1 . Unauthorized Hacks 17 | . . . . . 4 . 3 . 5 . 1 . . 3 . 1 . Terminals 13 | . . . . . 3 . 2 . 4 . 1 . . 3 . . . Botnet 13 | . . . . . 3 . 2 . 4 . 1 . . 3 . . . Fabricators 1 | . . . . . . . . . . . . . . . . 1 . Prioritize 1 | . . . . . . . . . . . . . . . . 1 . Repair Stations . | . . . . . . . . . . . . . . . . . . Recycling Units 1 | . . . . . 1 . . . . . . . . . . . . Recyclers 1 | . . . . . 1 . . . . . . . . . . . . Scanalyzers . | . . . . . . . . . . . . . . . . . . Garrison Access 2 | . . . . . . . 1 . 1 . . . . . . . . Reprogram 2 | . . . . . . . 1 . 1 . . . . . . . . Data Cores Recovered 1 | . . . . . . . . . . . 1 . . . . . . Used . | . . . . . . . . . . . . . . . . . . Hacking Detections 39 | . . . . . 8 1 8 2 5 1 5 . . 5 1 2 1 Full Trace Events 5 | . . . . . . 1 . 2 . . 1 . . 1 . . . Feedback Events . | . . . . . . . . . . . . . . . . . . Feedback Blocked . | . . . . . . . . . . . . . . . . . . Robot Schematics Acquired 1 | . . . . . 1 . . . . . . . . . . . . Robots Built 1 | . . . . . . . . . . . . . . . . 1 . Authchips 1 | . . . . . . . . . . . . . . . . 1 . Time 116 | . . . . . . . . . . . . . . . . 116 . Total Robot Build Rating 3 | . . . . . . . . . . . . . . . . 3 . Part Schematics Acquired 2 | . . . . . . . 1 . 1 . . . . . . . . Parts Built 1 | . . . . . . . . . . . . . . 1 . . . Authchips . | . . . . . . . . . . . . . . . . . . Time 47 | . . . . . . . . . . . . . . 47 . . . Total Part Build Rating 5 | . . . . . . . . . . . . . . 5 . . . Parts Repaired 13 | . . . . . 11 . . . 2 . . . . . . . . Time 398 | . . . . . 322 . . . 76 . . . . . . . . Parts Recycled . | . . . . . . . . . . . . . . . . . . Recycled Matter . | . . . . . . . . . . . . . . . . . . Retrieved Matter . | . . . . . . . . . . . . . . . . . . Retrieved Components . | . . . . . . . . . . . . . . . . . . Parts Scanalyzed 1 | . . . . . . . 1 . . . . . . . . . . Part Schematics Acquired 1 | . . . . . . . 1 . . . . . . . . . . Parts Damaged . | . . . . . . . . . . . . . . . . . . Bothacking | -11 -10 -10 -10 -9 -8 -8 -8 -8 -7 -7 -6 -5 -5 -4 -4 -4 -4 ------------ Run | Jun Mat Min Exi Min Mat Gar Mat Gar Fac Gar Fac Fac Gar Fac Gar Fac Gar Used RIF Installer 6 | . . . . . . 1 . 1 . 2 . . 1 . 1 . . Signal Jammer 1 | . . . . . . . . . . 1 . . . . . . . Watcher Feeds 1 | . . . . . . . . . . . . . 1 . . . . Alert ID Control 1 | . . . . . . . . 1 . . . . . . . . . Autooverride 1 | . . . . . . . . . . 1 . . . . . . . Autoassimilate 1 | . . . . . . . . . . . . . . . 1 . . Robots Hacked 14 | . . . . . . . . 4 1 6 1 . . . 1 1 . Non-combat 1 | . . . . . . . . . . . 1 . . . . . . Combat 13 | . . . . . . . . 4 1 6 . . . . 1 1 . Autooverrided 1 | . . . . . . . . . . . . . . . 1 . . Robot Hacks Applied 16 | . . . . . . . . 4 1 6 4 . . . . 1 . purge_threat 2 | . . . . . . . . . . . 2 . . . . . . clear_repairs 1 | . . . . . . . . . . . 1 . . . . . . wipe_record 1 | . . . . . . . . . . 1 . . . . . . . overwrite_iff 1 | . . . . . . . . . . 1 . . . . . . . formatsys_low 1 | . . . . . . . . . . . 1 . . . . . . formatsys_high 10 | . . . . . . . . 4 1 4 . . . . . 1 . Relay Couplers Released 33 | . . . . . . 6 . 4 4 10 . . 4 . . . 5 Machine Destruction 25 | . . . . . . 6 . 4 . 10 . . . . . . 5 Programmers 8 | . . . . . . . . . 4 . . . 4 . . . . Attached 11 | . . . . . . . . 3 1 2 1 1 . . . . 3 Fabnet Peak Effective % . | . . . . . . . . . . . . . . . . . . Robots Rewired 4 | . . . . . . . . 4 . . . . . . . . . Allies Hacked 8 | . . . . . . . . . . . 1 1 2 3 . 1 . Hacks Repelled . | . . . . . . . . . . . . . . . . . . Allies | -11 -10 -10 -10 -9 -8 -8 -8 -8 -7 -7 -6 -5 -5 -4 -4 -4 -4 -------- Run | Jun Mat Min Exi Min Mat Gar Mat Gar Fac Gar Fac Fac Gar Fac Gar Fac Gar Total Allies 32 | . . 4 . . . . . 8 1 5 1 3 2 3 1 2 2 Largest Group 6 | . . 4 4 . . . . 6 6 3 1 3 4 3 1 1 1 Highest-Rated Group 161 | . . 104 104 . . . . 151 151 48 26 127 161 154 49 49 116 Highest-Rated Ally 116 | . . 31 31 . . . . 39 39 21 26 54 54 58 49 49 116 Total Orders 3 | . . . . . . . . . . . . . . . . 1 2 ROAM 1 | . . . . . . . . . . . . . . . . . 1 FOLLOW 1 | . . . . . . . . . . . . . . . . . 1 AID 1 | . . . . . . . . . . . . . . . . 1 . Ally Attacks 149 | . . . . . . . . 14 23 27 . 19 24 25 1 4 12 Total Damage 3619 | . . . . . . . . 255 282 364 . 471 691 613 20 151 772 Kills 34 | . . . . . . . . 4 4 3 . 9 9 2 . . 3 Allies Corrupted 1 | . . . . . . . . . . . . . . . . 1 . Allies Melted 1 | . . . . . . . . . . . . . . 1 . . . Field Lobotomies 4 | . . . . . . . . . . . . 2 . . . . 2 Intel | -11 -10 -10 -10 -9 -8 -8 -8 -8 -7 -7 -6 -5 -5 -4 -4 -4 -4 ------- Run | Jun Mat Min Exi Min Mat Gar Mat Gar Fac Gar Fac Fac Gar Fac Gar Fac Gar Robot Analysis Total . | . . . . . . . . . . . . . . . . . . Derelict Logs Recovered 1 | . . . . 1 . . . . . . . . . . . . . Drone Launches . | . . . . . . . . . . . . . . . . . . Drone Recoveries . | . . . . . . . . . . . . . . . . . . Exploration | -11 -10 -10 -10 -9 -8 -8 -8 -8 -7 -7 -6 -5 -5 -4 -4 -4 -4 ------------- Run | Jun Mat Min Exi Min Mat Gar Mat Gar Fac Gar Fac Fac Gar Fac Gar Fac Gar Turns Passed 20720 | 69 391 617 1157 842 1818 1293 3086 1376 1356 3805 1124 789 359 543 141 936 1018 Spaces Moved 7865 | 41 196 363 471 258 392 358 808 407 460 1078 526 384 183 738 224 580 398 Core 67 | 5 . . . . . . . . . . . . . . 3 59 . Treads 5996 | 36 196 363 471 258 392 358 808 407 460 725 526 384 183 23 . 8 398 Legs 353 | . . . . . . . . . . 353 . . . . . . . Wheels 427 | . . . . . . . . . . . . . . . . 427 . Hover 821 | . . . . . . . . . . . . . . 715 106 . . Flight 201 | . . . . . . . . . . . . . . . 115 86 . Fastest Speed 32 | 50 160 160 160 320 305 305 305 305 225 148 160 160 162 32 32 34 180 Average Speed 218 | 146 160 160 244 320 319 305 305 305 231 313 164 183 162 56 41 121 180 Slowest Speed 560 | 160 160 160 320 320 560 305 465 305 305 480 245 245 163 163 100 250 180 Overloaded Moves . | . . . . . . . . . . . . . . . . . . Propulsion Burnouts . | . . . . . . . . . . . . . . . . . . Robots Hopped 4 | . . . . . . . . . . 1 . . . . 2 1 . Cave-ins Triggered . | . . . . . . . . . . . . . . . . . . Exploration Rate (%) 39 | 3 36 75 70 57 36 41 67 55 15 89 20 13 28 18 40 12 38 Regions Visited 17 Branch Regions 3 Pre-discovered Areas 3 | . . 1 1 1 . . . . . . . . . . . . . Known Exits Taken 7 | . . . . . 1 . 1 . 1 . 1 1 . 1 . 1 . Unknown Exits Taken 5 | 1 1 1 1 1 . . . . . . . . . . . . . Scrap Searched 3 | . . 1 . 2 . . . . . . . . . . . . . Spaces Dug 121 | . 5 . . 6 2 . 19 33 10 12 . . . 9 1 2 22 Terrain Destroyed 705 | . 21 66 . 26 55 . 19 82 42 91 6 8 40 34 19 92 104 Melee 23 | . . . . . 2 . 2 4 10 5 . . . . . . . Projectile 46 | . . . . . . . 4 . 2 9 6 . . 9 2 6 8 AOE 634 | . 21 66 . 26 53 . 13 78 30 77 . 8 40 25 17 86 94 Terrain Rammed . | . . . . . . . . . . . . . . . . . . Walls Destroyed . | . . . . . . . . . . . . . . . . . . Machines Disabled . | . . . . . . . . . . . . . . . . . . Actions | -11 -10 -10 -10 -9 -8 -8 -8 -8 -7 -7 -6 -5 -5 -4 -4 -4 -4 --------- Run | Jun Mat Min Exi Min Mat Gar Mat Gar Fac Gar Fac Fac Gar Fac Gar Fac Gar Total 10364 | 47 255 382 476 269 894 463 1234 495 676 1350 688 451 224 848 257 753 602 Wait 1265 | . 32 2 . 3 407 37 282 15 108 36 44 35 13 66 11 54 120 Move 7846 | 40 195 362 470 258 392 357 808 406 459 1075 525 384 182 738 219 578 398 Hop 4 | . . . . . . . . . . 1 . . . . 2 1 . Pick Up 118 | 1 11 2 5 2 15 2 7 4 14 16 6 1 1 3 4 19 5 Fast Attach 113 | 6 2 . . 1 12 2 6 . 5 12 12 12 . 9 4 19 11 Attach 57 | . . . . . 5 3 5 5 5 4 6 1 . 6 6 7 4 Detach 24 | . . . . . 2 . . . 2 1 7 1 . 6 1 4 . Swap 102 | . 3 2 1 . 12 9 12 6 6 23 5 3 4 3 1 6 6 Drop 115 | . 2 . . 1 14 . 15 3 9 22 17 5 2 3 . 14 8 Fire 540 | . 10 13 . 3 30 48 93 24 45 94 29 5 22 14 9 51 50 Melee 132 | . . . . . 2 2 2 22 22 42 37 3 . . . . . Ram . | . . . . . . . . . . . . . . . . . . Kick . | . . . . . . . . . . . . . . . . . . Crush 12 | . . . . 1 3 1 4 . . 2 . 1 . . . . . Escape Stasis 28 | . . . . . . 2 . 6 . 20 . . . . . . . Rewire 8 | . . 1 . . . . . 4 1 2 . . . . . . . Trap . | . . . . . . . . . . . . . . . . . . Miscellaneous . | . . . . . . . . . . . . . . . . . . Route ------- -11/Junkyard -10/Materials (discovered 2 exits: [*Mat] / *Min) -10/Mines (discovered 3 exits: [*Mat x2] / *Exi) -10/Exiles -9/Mines -8/Materials -8/Garrison -8/Materials (discovered 3 exits: *Fac x2 / Gar) -8/Garrison -7/Factory -7/Garrison (discovered 3 exits: *Fac x3) -6/Factory (discovered 6 exits: *Fac x4 / Low x2) -5/Factory -5/Garrison -4/Factory -4/Garrison (discovered 3 exits: *Fac x3) -4/Factory -4/Garrison (discovered 1 exit: [*Res]) History --------- Turn | Location | Event 3 | -11/Junkyard | Discovered new exit (range 15) 70 | -11/Junkyard | Entered Materials 255 | -10/Materials | Discovered new exit (range 11) 313 | -10/Materials | Build established: Mutant 427 | -10/Materials | Discovered new exit (range 16) 461 | -10/Materials | Entered Mines 511 | -10/Mines | Found the Drone Emporium 521 | -10/Mines | Found Prototype Device 671 | -10/Mines | Discovered new exit (range 6) 686 | -10/Mines | Escorted by a lone wolf Derelict 706 | -10/Mines | Learned location of Storage (-7) 863 | -10/Mines | Received a Mining Laser from a helpful Derelict 1004 | -10/Mines | Discovered new exit (range 5) 1070 | -10/Mines | Deemed a non-threat by the Exiles lab entrance 1071 | -10/Mines | Discovered new exit (range 5) 1078 | -10/Mines | Entered Exiles 1078 | -10/Exiles | Accompanied by 4 allies 1108 | -10/Exiles | Led the pair of lost Derelicts to a safe place 1118 | -10/Exiles | Met 8R-AWN 1146 | -10/Exiles | Met EX-HEX 1224 | -10/Exiles | Met EX-DEC 1355 | -10/Exiles | Met EX-BIN 1381 | -10/Exiles | Aligned with FarCom system 1382 | -10/Exiles | Given EX-Vault access code 1419 | -10/Exiles | Opened EX-Vault 1437 | -10/Exiles | Found Field Lobotomy Kit 1444 | -10/Exiles | Found Latent Energy Streamer 1461 | -10/Exiles | Found Lightpack 2.0 1526 | -10/Exiles | Warned to stay clear of 0b10 Research branches 1632 | -10/Exiles | Learned location of Zion (-6) 1744 | -10/Exiles | Discovered new exit (range 10) 2235 | -10/Exiles | Stole three prototypes: Field Lobotomy Kit, Latent Energy Streamer, Lightpack 2.0 2235 | -10/Exiles | Entered Mines 2592 | -9/Mines | A weapon hastily lodged in a ceiling crevice suddenly fell to the ground 3039 | -9/Mines | Discovered new exit (range 10) 3077 | -9/Mines | Entered Materials 3077 | -8/Materials | Evolved 4 slots: Utility x4 3536 | -8/Materials | Repaired Huge Storage Unit 3562 | -8/Materials | Repaired Lgt. Treads 3594 | -8/Materials | Repaired Cooling System 3634 | -8/Materials | Repaired Lgt. Treads 3672 | -8/Materials | Repaired Imp. Light Armor Plating 3706 | -8/Materials | Repaired Hvy. EM Pulse Gun 3740 | -8/Materials | Repaired Hvy. EM Pulse Gun 3773 | -8/Materials | Repaired Hrd. Light Armor Plating 4195 | -8/Materials | Repaired Lgt. Armor Plating 4223 | -8/Materials | Repaired Lgt. Armor Plating 4250 | -8/Materials | Repaired Lgt. Treads 4895 | -8/Materials | Identified exit to Garrison 4895 | -8/Materials | Entered Garrison 4996 | -8/Garrison | Installed Relay Interface Framework 5271 | -8/Garrison | Garrison Relay disabled 5580 | -8/Garrison | Triggered checkpoint 5880 | -8/Garrison | Garrison Relay disabled 6005 | -8/Garrison | Discovered new exit (range 11) 6188 | -8/Garrison | Entered Materials 7372 | -8/Materials | Discovered new exit (range 12) 7640 | -8/Materials | Identified Bomb Drone Bay 7893 | -8/Materials | Discovered new exit (range 4) 9274 | -8/Materials | Identified exit to Garrison 9274 | -8/Materials | Entered Garrison 9456 | -8/Garrison | Triggered checkpoint 9564 | -8/Garrison | Garrison Relay disabled 9875 | -8/Garrison | Build established: Bothacker-Mutant 9969 | -8/Garrison | Discovered new exit (range 13) 10130 | -8/Garrison | Triggered checkpoint 10198 | -8/Garrison | Expanded RIF knowledge: Alert ID Control 10650 | -8/Garrison | Entered Factory 10650 | -7/Factory | Accompanied by 6 allies 10650 | -7/Factory | Evolved 2 slots: Propulsion x2 10652 | -7/Factory | FarCom data flow suspended 10701 | -7/Factory | Build established: Commander-Mutant 11083 | -7/Factory | Repaired Adv. Treads 11123 | -7/Factory | Repaired Assault Cannon 11310 | -7/Factory | Build established: Hacker-Mutant 11896 | -7/Factory | Identified exit to Garrison 12006 | -7/Factory | Entered Garrison 12138 | -7/Garrison | Triggered checkpoint 12193 | -7/Garrison | Garrison Relay disabled 12466 | -7/Garrison | Build established: Bothacker-Mutant 12762 | -7/Garrison | Triggered checkpoint 12828 | -7/Garrison | Triggered checkpoint 12864 | -7/Garrison | Triggered checkpoint 12988 | -7/Garrison | Discovered new exit (range 11) 12992 | -7/Garrison | Triggered checkpoint 13055 | -7/Garrison | Garrison Relay disabled 13103 | -7/Garrison | Build established: Hacker-Mutant 13594 | -7/Garrison | Build established: Bothacker-Mutant 13890 | -7/Garrison | Discovered new exit (range 11) 13966 | -7/Garrison | Triggered checkpoint 14420 | -7/Garrison | Build established: Hacker-Mutant 14442 | -7/Garrison | Spotted B-75 Beast 14484 | -7/Garrison | Triggered checkpoint 14728 | -7/Garrison | Triggered checkpoint 14802 | -7/Garrison | Triggered checkpoint 14806 | -7/Garrison | Discovered new exit (range 15) 14975 | -7/Garrison | System corruption reached 10% 15007 | -7/Garrison | Expanded RIF knowledge: Autooverride 15125 | -7/Garrison | Spotted B-75 Beast 15695 | -7/Garrison | Expanded RIF knowledge: Signal Jamming 15811 | -7/Garrison | Entered Factory 15811 | -6/Factory | Evolved 2 slots: Propulsion x2 16385 | -6/Factory | Identified exit to Factory 16511 | -6/Factory | Spotted B-75 Beast 16694 | -6/Factory | Identified exit to Lower Caves 16861 | -6/Factory | First assault squad dispatched 16935 | -6/Factory | Entered another Factory area 16935 | -5/Factory | Evolved 2 slots: Utility x2 17242 | -5/Factory | Assimilated P-70 Sage with FLK Orb 17245 | -5/Factory | Assimilated P-70 Sage with FLK Orb 17607 | -5/Factory | Sage 6a assimilated hostile W-25 Informer 17724 | -5/Factory | Identified exit to Garrison 17724 | -5/Factory | Entered Garrison 17724 | -5/Garrison | Accompanied by 2 allies 17788 | -5/Garrison | Sage 6b assimilated hostile H-66 Slayer 17802 | -5/Garrison | Triggered checkpoint 17805 | -5/Garrison | Triggered checkpoint 17814 | -5/Garrison | Triggered checkpoint 17864 | -5/Garrison | Expanded RIF knowledge: Watcher Feeds 18014 | -5/Garrison | Discovered new exit (range 13) 18083 | -5/Garrison | Entered Factory 18083 | -4/Factory | Accompanied by 1 ally 18083 | -4/Factory | Evolved 2 slots: Utility x2 18158 | -4/Factory | Lost 3 parts (2n1u) 18587 | -4/Factory | Fabricated Stasis Canceller? 18626 | -4/Factory | Identified exit to Garrison 18626 | -4/Factory | Entered Garrison 18648 | -4/Garrison | Lost 3 parts (2n1u) 18678 | -4/Garrison | Spotted B-86 Titan 18680 | -4/Garrison | Triggered checkpoint 18685 | -4/Garrison | Discovered new exit (range 27) 18685 | -4/Garrison | Discovered new exit (range 42) 18685 | -4/Garrison | Discovered new exit (range 37) 18687 | -4/Garrison | Triggered checkpoint 18692 | -4/Garrison | Triggered checkpoint 18725 | -4/Garrison | Spotted B-86 Titan 18729 | -4/Garrison | Found Relay Coupler [Proto] 18730 | -4/Garrison | Found Relay Coupler [Proto] 18731 | -4/Garrison | Found Relay Coupler [Proto] 18732 | -4/Garrison | Found Relay Coupler [Proto] 18755 | -4/Garrison | Expanded RIF knowledge: Autoassimilate 18758 | -4/Garrison | Core integrity fell below 50% 18767 | -4/Garrison | Entered Factory 18797 | -4/Factory | Lost 14 parts (3p5n4u2w) 19000 | -4/Factory | Build established: Bothacker-Mutant 19346 | -4/Factory | System corruption reached 10% 19438 | -4/Factory | Lost 6 parts (2n3u1w) 19592 | -4/Factory | Fabricated M-28 Smith (x1) 19621 | -4/Factory | Core integrity fell below 20% 19703 | -4/Factory | Identified exit to Garrison 19703 | -4/Factory | Entered Garrison 19982 | -4/Garrison | Build established: Mutant 20022 | -4/Garrison | Found Relay Coupler [Proto] 20027 | -4/Garrison | Found Relay Coupler [Proto] 20071 | -4/Garrison | Spotted B-86 Titan 20074 | -4/Garrison | Assimilated B-86 Titan with FLK Orb 20102 | -4/Garrison | Triggered checkpoint 20191 | -4/Garrison | Discovered new exit (range 8) 20206 | -4/Garrison | Triggered checkpoint 20287 | -4/Garrison | Build established: Botlord-Mutant 20316 | -4/Garrison | Garrison Relay disabled 20564 | -4/Garrison | Phase Generator disabled 20698 | -4/Garrison | Triggered checkpoint 20707 | -4/Garrison | Triggered checkpoint 20710 | -4/Garrison | Triggered checkpoint 20713 | -4/Garrison | Assimilated H-77 Assassin with FLK Orb 20721 | -4/Garrison | Destroyed by G-67 Veteran with Plasma Rifle Last Messages --------------- 20710_ Slug penetrates Reinforced Barrier. 20710_ Penetrated by Slug. 20710_ Slug penetrates Wall. 20710_ Beams of light sweep through the air. An alarm sounds. 20710_ Penetrated by Slug. 20712_ Imp. Medium Armor Plating destroyed. 20713_ System corrupted: Component data lost. 20713_ H-77 Assassin assimilated. 20714_ Penetrated by Slug. 20714_ Slug penetrates Reinforced Barrier. 20714_ Slug penetrates Wall. 20714_ Hvy. Siege Treads destroyed. 20716_ Field Lobotomy Kit expended. 20717_ Hvy. Siege Treads destroyed. 20717_ Slug penetrates Wall. 20717_ Slug penetrates G-67 Veteran. 20720_ Penetrated by Slug. 20720_ Hvy. Siege Treads destroyed. 20720_ Slug penetrates Wall. 20720_ G-67 Veteran destroyed. Map ----- +----------------------------------------------------+ | ?????????????????????????????????????????????????? | | ?????????????????????????????????????????????????? | | ?????????????????????????????????????????????????? | | ?????????????????????????????????????????????????? | | ?????????????????????????????????????????????????? | | ?????????????????????????????????????????????????? | | ?????????????????????????????????????????????????? | | ?????????????????????????????????????????????????? | | ?????????????????????????????????????????????????? | | ?????????????????????????????????????????????????? | | ???????????????????????? ??????????????????????? | | ???????????????????????? ??????????????????????? | | ???????????????????????? ??????????????????????? | | ???????????????????????# #?????????????????????? | | ???????????????????????# #?????????????????????? | | ??????????????????????? ?????????????????????? | | ???????????????????????#^^^#?????????????????????? | | ???????????? ??????##??#^ #?????????????????????? | | ???????????# ??????? ?# #?????????????????????? | | ???????????# #####""" ## #?????????????????????? | | ??????????? ###???????????????????? | | ??????????? g ????????????????????? | | ???????????? g ?????????????????????? | | ????????????# ## ##%! #?????????????????????? | | ????????????# ## ##!* ###???????????????????? | | ??????????#g @ #???????????????????? | | ##????????# g #???????????????????? | | ##???????# g ]%[ h#???????????????????? | | #???????? h#???????????????????? | | ##???????## ## ## ###???????????????????? | | ########## ## "# #???????????????? ????? | | # ######??????????? ????? | | #??????????? ????? | | # ######## = #### #??????????? ????? | | # #??????## ### = ## ##??# #??????????? ????? | | # #???????# #?# ## #???# #??????????? ????? | | # ^#???????# #?####### #???# #??????????? ????? | | ##^^#???????# #???????# #???# #??????????# "???? | | ### ^ ??????? #???????# #???# #????####### "???? | | ??# ^#???????###???????# #???# #?#### " #???? | | ??# #?????????????????# #???# ### #### #???? | | ??# #?????????????????# ##### ### ## #?# #???? | | ??# #?????????????????# %%%# #?# #???? | | ### #?????????????????# *[ ##### #???? | | #?????????????????###### ### # #???? | | #??????????????????????# [#?# # ## #???? | | #" ###??????????????????##### ###### ##### #???? | | #[ #????????????????????# #???# #??## ##### | | ##=#????????#######??## # ^ # ### #??# | | ?# #????????#"!"""#??# [!! ## #### | +----------------------------------------------------+ Best States ------------- Heat Dissipation 100 Coolant Potential 100 Energy Generation 21 Energy Capacity 570 Matter Stores 450 Matter Capacity 450 Sight Range 16 Robot Scan Range 18 Terrain Scan Density 10 Jamming Range 16 Additional Mass Support 12 Corruption Containment 8 Armor Coverage 600 Resistance: KI 25 Propulsion Shielding 66 Melee Speed Boost 30 Phase Shifting 15 Evasion (%) 63 Launcher Accuracy 20 Recoil Reduction 6 Matter Filtering 50 Offensive Hacking 20 Defensive Hacking 20 Relay Coupler Types 3 Relay Coupler Value 123 Authchip Count 2 Item Schematics ----------------- Imp. VTOL Module | -8/Materials | Scanalyzed Stasis Canceller | -7/Factory | Hacked Robot Schematics ------------------ M-28 Smith | -8/Materials | Hacked Fabricated ------------ Stasis Canceller | x1 | -4/Factory M-28 Smith | x1 | -4/Factory | Authchip Alien Tech Used ----------------- None Achievements -------------- None Challenges ------------ None Game ------ Seed BiocellSniperLoader Manual? 0 Play Time 02:01:30 Cumulative 421.5 hours Start 2023.03.17 @ 19:08:56 End 2023.03.17 @ 21:46:48 Sessions 3 Manual Loads 0 Difficulty Rogue Special Mode None Game No. 460 Rogue 451 Adventurer 8 Explorer 1 Win Type - Total 7 Types 4/1/2/0/0/0/0/0/0 Lore% 78 Gallery% 90 Achievement% 71 Wizard Run 0 Options --------- ASCII 0 Keyboard 0 Movement Numpad Keybinds 1 Fullscreen 2 Font 18/Terminus Map View 76x50 Tactical HUD 1 Map Filters NONE Filters NONE Steam 1 RUN: 8e353caa-775f-4ad9-a16e-346915ce2ce2